bitfinex-derivatives/quotes_SOLF0:USTF0_20260226
["timestamp","ask_amount","ask_price","bid_price","bid_amount"]
[1772138806909,13.21888094,86.08,86.034,3.87711989]
[1772138807102,10.53860585,86.078,86.034,3.87711989]
[1772138807406,0.08330585,86.077,86.034,3.87711989]
[1772138808007,2.76378094,86.07,86.034,3.87711989]
[1772138809707,10.4562,86.071,86.034,3.87711989]
[1772138811109,0.07813239,86.075,86.034,3.87711989]
[1772138811409,2.76378094,86.08,86.034,3.87711989]
[1772138811410,0.07381333,86.085,86.034,3.87711989]
[1772138811707,2.76378094,86.08,86.034,3.87711989]
[1772138813005,2.76378094,86.08,86.036,3.89046667]
[1772138814508,2.76378094,86.08,86.039,3.8903293]
[1772138814706,0.05687808,86.099,86.041,3.8903293]
[1772138815912,10.4523,86.103,86.055,3.88594477]
[1772138816411,2.76378094,86.11,86.055,3.88594477]
[1772138816711,10.4517,86.108,86.065,3.88594477]
[1772138819411,10.5059341,86.108,86.065,3.88594477]
[1772138819611,10.4525,86.102,86.065,3.88594477]
[1772138820414,0.0542341,86.108,86.066,10.4567]
[1772138820709,10.4512,86.112,86.067,3.89160852]
[1772138821815,2.76378094,86.11,86.07,3.8749561]
[1772138822114,2.76378094,86.12,86.07,3.8749561]
[1772138822914,2.76378094,86.12,86.072,3.87495609]
[1772138823817,0.06690519,86.089,86.041,3.88530994]
[1772138824016,2.76378094,86.07,86.041,3.88530994]
[1772138825012,0.06690519,86.079,86.041,3.88530994]
[1772138825211,2.76378094,86.07,86.041,3.88530994]
[1772138826115,10.52230412,86.077,86.041,3.88530994]
[1772138828913,10.4562,86.071,86.041,3.88530994]
[1772138829118,2.76378094,86.07,86.03,3.78859062]
[1772138829718,10.4567,86.066,86.03,3.78859062]
[1772138831022,2.76378094,86.07,86.03,3.78859062]
[1772138831212,10.4557,86.075,86.03,3.78859062]
[1772138831923,0.2603385,86.076,86.03,3.78859062]
[1772138834422,0.2603385,86.076,86.033,3.79438149]
[1772138844435,0.24543665,86.099,86.035,3.79403812]
[1772138844632,0.24543665,86.099,86.051,3.79403812]
[1772138845435,10.4529,86.098,86.054,10.4581]
[1772138845636,10.4529,86.098,86.055,3.79403812]
[1772138845837,0.24543665,86.099,86.055,3.79403812]
[1772138845838,2.76469304,86.09,86.055,3.79403812]
[1772138846436,2.99916841,86.09,86.055,3.79403812]
[1772138847038,10.4549,86.082,86.044,3.79951791]
[1772138847337,10.4549,86.082,86.03,13.22569304]
[1772138847338,2.76469304,86.07,86.03,10.461]
[1772138849237,10.456,86.073,86.03,10.461]
[1772138849437,10.456,86.073,86.031,3.77686548]
[1772138849639,10.4567,86.067,86.031,3.77686548]
[1772138850538,3.54462151,86.069,86.031,3.77686548]
[1772138853743,3.54462151,86.069,86.035,3.77686548]
[1772138854940,3.54462151,86.069,86.038,10.4601]
[1772138856736,2.76469304,86.08,86.039,3.58424294]
[1772138857040,20.8988,86.127,85.991,2.02156921]
[1772138857041,2.76469304,86.1,86.048,3.58424294]
[1772138857240,2.76469304,86.1,86.05,2.76469304]
[1772138857942,10.4529,86.098,86.056,3.58424294]
[1772138858342,14.23946508,86.098,86.056,3.58424294]
[1772138860244,3.88644471,86.097,86.056,3.58424294]
[1772138860444,2.76469304,86.09,86.056,3.58424294]
[1772138868849,3.88644471,86.108,86.058,3.77159359]
[1772138869845,2.76469304,86.09,86.058,3.77159359]
[1772138870048,6.65113775,86.09,86.058,3.77159359]
[1772138870248,3.88644471,86.089,86.058,3.77159359]
[1772138870450,14.34044471,86.089,86.058,3.77159359]
[1772138873350,3.88644471,86.085,86.038,3.77159359]
[1772138874954,10.4549,86.082,86.043,3.77159359]
[1772138875345,10.4549,86.082,86.042,10.4595]
[1772138875346,3.88644471,86.128,86.051,3.77159359]
[1772138875549,10.4528,86.099,86.059,3.77159359]
[1772138875750,2.76469304,86.1,86.059,3.77159359]
[1772138876454,6.65113775,86.1,86.059,3.77159359]
[1772138876957,10.4536,86.092,86.059,3.77159359]
[1772138877252,3.88644471,86.091,86.04,2.76469304]
[1772138877453,3.88644471,86.089,86.047,3.77159359]
[1772138878859,3.88644471,86.087,86.047,3.77159359]
[1772138880857,10.4543,86.086,86.047,3.77159359]
[1772138881063,3.88644471,86.085,86.047,3.77159359]
[1772138882162,3.88644471,86.102,86.051,3.77159359]
[1772138882562,10.4525,86.101,86.051,3.77159359]
[1772138883062,10.4525,86.101,86.061,3.77159359]
[1772138886262,10.4525,86.101,86.062,10.4572]
[1772138886463,3.88644471,86.102,86.063,3.77159359]
[1772138887966,3.88644471,86.102,86.065,14.22839359]
[1772138889367,3.88644471,86.101,86.05,2.76469304]
[1772138889665,3.88644471,86.099,86.05,3.77159359]
[1772138890867,3.87933585,86.093,86.052,3.73235803]
[1772138891869,2.76469304,86.1,85.994,194.02542117]
[1772138891870,3.87933585,86.089,86.041,3.73235803]
[1772138892668,14.33433585,86.081,86.043,3.73235803]
[1772138894467,3.87933585,86.08,86.043,3.73235803]
[1772138894971,3.87933585,86.078,86.043,3.73235803]
[1772138895470,3.87933585,86.095,86.054,3.73235803]
[1772138897073,10.4534,86.094,86.054,3.73235803]
[1772138900485,10.4536,86.092,86.053,10.4583]
[1772138900678,3.87933585,86.091,86.053,10.4583]
[1772138901686,3.87933585,86.091,86.054,3.73235803]
[1772138902786,3.87933585,86.103,86.054,3.73235803]
[1772138903885,10.4524,86.102,86.055,10.458]
[1772138904081,10.4524,86.102,86.056,3.73235803]
[1772138904277,3.87933585,86.114,86.056,3.73235803]
[1772138904483,3.87933585,86.114,86.06,2.76469304]
[1772138904785,3.87933585,86.114,86.061,3.73235803]
[1772138905888,3.87933585,86.114,86.072,3.73235803]
[1772138909190,3.87933585,86.114,86.074,3.73235803]
[1772138909385,10.4505,86.118,86.074,3.73235803]
[1772138910088,10.4509,86.114,86.074,3.73235803]
[1772138910288,2.76198392,86.11,86.062,3.73235803]
[1772138910490,3.87933585,86.099,86.062,3.73235803]
[1772138910986,3.87933585,86.089,86.051,3.73235803]
[1772138913794,3.87933585,86.079,86.038,3.73235803]
[1772138914893,10.4558,86.074,86.038,3.73235803]
[1772138915393,3.87933585,86.079,86.038,3.73235803]
[1772138919394,3.76283215,86.069,86.026,3.90085769]
[1772138920196,3.76283215,86.069,86.029,3.66885957]
[1772138921899,3.76283215,86.069,86.032,10.4608]
[1772138922098,3.76283215,86.069,86.032,14.12965957]
[1772138923199,3.76283215,86.069,86.033,3.66885957]
[1772138923498,3.76283215,86.069,86.035,3.66885957]
[1772138924899,3.76283215,86.069,86.036,10.4603]
[1772138925197,3.76083031,86.079,86.037,3.66885957]
[1772138925399,3.76083031,86.089,86.037,3.66885957]
[1772138925799,3.76083031,86.079,86.037,3.66885957]
[1772138926398,3.76083031,86.077,86.038,3.66885957]
[1772138926602,3.76083031,86.069,86.038,3.66885957]
[1772138926999,3.76083031,86.069,86.029,10.4611]
[1772138927605,3.76083031,86.069,86.03,3.66885957]
[1772138938207,3.76083031,86.069,86.032,3.66885957]
[1772138939912,3.76083031,86.069,86.033,14.12945957]
[1772138940809,3.76083031,86.069,86.034,3.66885957]
[1772138948211,3.76083031,86.082,86.036,3.66885957]
[1772138948613,3.76083031,86.082,86.04,2.76198392]
[1772138948912,3.76083031,86.082,86.042,3.66885957]
[1772138949713,3.84666556,86.08,86.043,3.67796003]
[1772138951914,3.84666556,86.077,86.043,3.67796003]
[1772138952415,3.84666556,86.073,86.032,3.67796003]
[1772138953916,3.84666556,86.066,86.032,3.67796003]
[1772138961127,10.4558,86.074,86.034,3.67796003]
[1772138965226,3.84666556,86.073,86.034,3.67796003]
[1772138965928,3.84666556,86.069,86.034,3.67796003]
[1772138970929,3.84666556,86.066,86.034,3.67796003]
[1772138971430,14.30366556,86.064,86.034,3.67796003]
[1772138971727,3.84666556,86.063,86.034,3.67796003]
[1772138973332,3.84666556,86.061,86.023,3.67796003]
[1772138974231,3.84666556,86.059,86.023,3.67796003]
[1772138974432,3.84666556,86.059,86.026,3.67796003]
[1772138977432,3.69672408,86.057,86.026,3.67796003]
[1772138977632,3.69672408,86.057,86.006,3.79606156]
[1772138978933,3.69672408,86.048,86.006,3.79606156]
[1772138983338,3.69672408,86.048,86.008,3.70241002]
[1772138983537,3.69672408,86.048,86.01,2.76462498]
[1772138984241,3.69672408,86.048,86.011,3.70241002]
[1772138987747,10.4593,86.046,86.011,3.70241002]
[1772138987947,14.29711967,86.046,86.011,3.70241002]
[1772138989344,2.76462498,86.04,85.994,3.70241002]
[1772138989647,3.83781967,86.029,85.982,3.70241002]
[1772138989847,3.83781967,86.028,85.982,3.70241002]
[1772138990238,3.83781967,86.028,85.984,3.70241002]
[1772138990843,10.4618,86.024,85.984,3.70241002]
[1772138991051,3.83781967,86.023,85.984,3.70241002]
[1772138991945,3.83781967,86.02,85.984,3.70241002]
[1772138992149,3.83781967,86.02,85.975,3.70241002]
[1772138992345,3.83781967,86.019,85.97,2.76462498]
[1772138992841,3.83781967,86.019,85.971,3.70241002]
[1772138993454,10.4633,86.012,85.974,3.70241002]
[1772138993645,3.83781967,86.019,85.974,3.70241002]
[1772138994950,3.83781967,86.018,85.974,3.70241002]
[1772138996453,3.83781967,86.018,85.975,10.4678]
[1772138996651,3.83781967,86.018,85.976,3.70241002]
[1772138997953,3.83781967,86.018,85.98,10.4672]
[1772138999754,3.83781967,86.018,85.973,10.468]
[1772138999950,3.83781967,86.018,85.973,14.17041002]
[1772139000252,5.23171631,86.057,85.964,3.70241002]
[1772139000556,3.83781967,86.039,85.981,3.70241002]
[1772139001050,2.76462498,86.02,85.97,2.76462498]
[1772139001354,3.83781967,86.019,85.971,3.70241002]
[1772139001549,3.83781967,86.004,85.96,16.936635]
[1772139001750,3.83781967,86.004,85.95,2.76462498]
[1772139002055,162.6817,86.055,85.928,3.70241002]
[1772139002056,3.75351742,85.979,85.928,3.70241002]
[1772139002256,3.75351742,85.979,85.931,3.70241002]
[1772139002751,3.75351742,85.976,85.933,10.4729]
[1772139003054,3.75351742,85.976,85.931,3.70241002]
[1772139003760,3.75351742,85.976,85.932,14.17541002]
[1772139003952,2.76462498,85.98,85.92,6.467035]
[1772139003953,3.49473455,85.972,85.92,6.467035]
[1772139004456,2.76462498,85.97,85.922,10.4742]
[1772139004658,3.49473455,85.967,85.922,10.4742]
[1772139005058,3.49473443,85.959,85.913,10.4753]
[1772139005258,3.49473443,85.959,85.911,3.70241002]
[1772139005559,3.49473443,85.97,85.929,3.70241002]
[1772139005759,3.49473443,85.97,85.93,2.76462498]
[1772139006260,3.49473443,85.97,85.931,3.70241002]
[1772139006662,3.49473443,85.97,85.932,14.17541002]
[1772139006862,3.49473443,85.97,85.933,3.70241002]
[1772139007064,3.62759657,85.989,85.941,3.70241002]
[1772139008266,10.4667,85.985,85.941,3.70241002]
[1772139008465,3.70916137,85.984,85.941,3.70241002]
[1772139008860,10.4644,86.003,85.951,3.70241002]
[1772139009058,3.70916126,86.002,85.951,3.70241002]
[1772139009457,3.70916126,85.998,85.951,3.70241002]
[1772139010258,3.70916126,85.998,85.952,10.4705]
[1772139010465,3.60945769,86.01,85.961,3.88110824]
[1772139010865,3.60945769,86.007,85.961,3.88110824]
[1772139011357,3.60945769,85.999,85.95,2.76462498]
[1772139011562,3.60945769,85.989,85.94,2.76462498]
[1772139011761,3.60945769,85.989,85.937,3.88110824]
[1772139011958,3.60945769,85.98,85.937,3.88110824]
[1772139012361,3.60945769,85.979,85.937,3.88110824]
[1772139012559,3.60945769,85.978,85.928,3.88110824]
[1772139012765,3.60945769,85.989,85.941,3.88110824]
[1772139013063,3.60945769,85.989,85.951,3.88110824]
[1772139013267,3.60945769,86.009,85.951,3.88110824]
[1772139014363,10.4644,86.004,85.96,10.4696]
[1772139014562,3.60945769,86.009,85.961,3.88110824]
[1772139016064,3.60945769,86.009,85.964,10.4691]
[1772139016667,10.4638,86.008,85.961,3.88110824]
[1772139017266,3.60945769,86.009,85.963,3.88110824]
[1772139017460,2.76462498,86.02,85.927,26.41661192]
[1772139017461,2.76462498,86.02,85.971,3.88110824]
[1772139017765,3.60945769,86.02,85.971,3.88110824]
[1772139017966,3.60945769,86.018,85.971,3.88110824]
[1772139019067,3.60945769,86.018,85.972,10.4681]
[1772139019269,3.60945769,86.018,85.973,3.88110824]
[1772139019671,10.4617,86.025,85.981,3.88110824]
[1772139020567,3.60945769,86.022,85.97,2.76462498]
[1772139020768,2.76462498,86.02,85.968,3.88110824]
[1772139020971,3.60945769,86.019,85.97,3.88110824]
[1772139021272,2.76462498,86.01,85.97,3.88110824]
[1772139023167,2.76462498,86.0,85.951,3.88110824]
[1772139023368,2.76462498,86.01,85.951,3.88110824]
[1772139023769,6.37408267,86.01,85.961,3.88110824]
[1772139024775,2.76462498,86.02,85.961,3.88110824]
[1772139024976,10.4629,86.016,85.967,3.88110824]
[1772139025882,10.4629,86.016,85.971,10.4682]
[1772139026176,2.76462498,86.02,85.972,3.88110824]
[1772139026675,3.60945769,86.022,85.98,3.88110824]
[1772139026875,2.76462498,86.02,85.98,3.88110824]
[1772139027276,2.76838985,86.02,85.98,3.88110824]
[1772139028078,10.4626,86.018,85.98,3.88110824]
[1772139030475,3.60945769,86.017,85.973,10.468]
[1772139030678,20.9152,86.06,85.967,3.88110824]
[1772139030679,3.60945769,86.009,85.967,3.88110824]
[1772139031881,10.4638,86.008,85.967,3.88110824]
[1772139032480,3.60945769,86.009,85.969,3.88110824]
[1772139033884,3.60945769,86.009,85.976,10.4677]
[1772139034983,3.60945769,86.009,85.97,3.88110824]
[1772139035483,2.76838985,86.01,85.927,26.41661192]
[1772139035484,3.60945769,86.006,85.956,3.88110824]
[1772139035785,2.76838985,86.01,85.956,3.88110824]
[1772139035986,3.67448593,85.999,85.956,3.88110824]
[1772139037987,3.67448593,85.998,85.956,3.88110824]
[1772139038389,3.67448593,85.998,85.96,10.4695]
[1772139038591,3.67448593,85.998,85.961,3.84987871]
[1772139039890,3.67448593,85.998,85.962,10.4694]
[1772139045294,3.67448593,85.998,85.969,10.4685]
[1772139045589,6.29789509,86.01,85.97,3.75126336]
[1772139045789,3.52950524,86.009,85.97,3.75126336]
[1772139049300,10.4639,86.008,85.97,3.75126336]
[1772139049598,13.99340524,86.008,85.97,3.75126336]
[1772139049900,10.4643,86.004,85.97,3.75126336]
[1772139050800,3.52950524,86.007,85.97,3.75126336]
[1772139051699,2.76838985,86.0,85.959,3.75126336]
[1772139051901,3.52950524,85.999,85.959,3.75126336]
[1772139052103,3.52950524,85.989,85.943,3.75126336]
[1772139052292,3.52950524,85.978,85.943,3.75126336]
[1772139053901,10.4677,85.976,85.943,3.75126336]
[1772139057107,3.52950524,85.964,85.927,26.41661192]
[1772139057402,3.52950524,85.979,85.928,3.75126336]
[1772139057708,162.7657,86.011,85.901,3.75126336]
[1772139057906,2.76838985,85.97,85.911,13.63642105]
[1772139058101,2.76838985,85.96,85.911,13.63642105]
[1772139059403,10.4687,85.968,85.911,13.63642105]
[1772139059601,2.76838985,85.96,85.911,13.63642105]
[1772139060499,2.76838985,85.95,85.911,13.63642105]
[1772139060802,10.4698,85.959,85.911,13.63642105]
[1772139064807,2.76838985,85.95,85.911,13.63642105]
[1772139065208,10.4698,85.959,85.911,13.63642105]
[1772139067511,2.76838985,85.94,85.899,13.60269615]
[1772139068209,2.76838985,85.96,85.901,13.60661389]
[1772139069910,2.76838985,85.96,85.904,10.4764]
[1772139070710,2.76838985,85.96,85.908,10.4759]
[1772139071111,2.76838985,85.96,85.909,13.68631654]
[1772139071711,10.4698,85.959,85.909,13.68631654]
[1772139074211,13.23928985,85.95,85.909,13.68631654]
[1772139075711,10.4698,85.959,85.91,13.6857092]
[1772139075915,10.4698,85.959,85.91,16.45409905]
[1772139076815,10.4698,85.959,85.91,13.6857092]
[1772139077015,10.4698,85.959,85.912,13.70603226]
[1772139079618,10.4706,85.953,85.912,13.70603226]
[1772139080919,10.4706,85.953,85.9,2.76838985]
[1772139080920,13.24048985,85.94,85.901,13.76156838]
[1772139081218,10.4721,85.94,85.901,13.76156838]
[1772139081512,2.76838985,85.93,85.89,13.76156838]
[1772139081718,2.76838985,85.92,85.89,13.76156838]
[1772139084114,2.76838985,85.92,85.879,13.74314649]
[1772139084415,2.76838985,85.9,85.866,13.74314649]
[1772139086022,10.4771,85.899,85.866,13.74314649]
[1772139086725,2.76838985,85.89,85.854,13.84675281]
[1772139087125,2.76838985,85.86,85.815,13.84675281]
[1772139087722,2.76838985,85.85,85.815,13.84675281]
[1772139088424,2.76838985,85.88,85.831,13.8283895]
[1772139088625,2.76838985,85.87,85.831,13.8283895]
[1772139088825,2.76838985,85.88,85.831,13.8283895]
[1772139089026,2.76838985,85.89,85.831,13.8283895]
[1772139089226,2.77722669,85.88,85.831,13.8283895]
[1772139090024,2.77722669,85.87,85.831,13.8283895]
[1772139090219,20.9518,85.909,85.81,2.77722669]
[1772139090418,2.77722669,85.87,85.82,2.77722669]
[1772139091127,10.4809,85.868,85.82,2.77722669]
[1772139091730,2.77722669,85.89,85.84,2.77722669]
[1772139091922,2.77722669,85.9,85.84,2.77722669]
[1772139092122,2.77722669,85.9,85.841,6.90873765]
[1772139092428,10.478,85.891,85.841,6.90873765]
[1772139093025,10.4773,85.898,85.842,10.484]
[1772139093224,2.77722669,85.91,85.851,6.90880332]
[1772139093424,162.8475,85.968,85.851,6.90880332]
[1772139093425,2.77722669,85.9,85.851,6.90880332]
[1772139093621,2.77722669,85.91,85.851,6.90880332]
[1772139094125,2.77722669,85.9,85.851,6.90880332]
[1772139094827,2.77722669,85.91,85.861,6.87992751]
[1772139095029,2.77722669,85.88,85.843,6.87997078]
[1772139096727,10.4795,85.879,85.843,6.87997078]
[1772139097631,2.77722669,85.88,85.843,6.87997078]
[1772139097932,10.4784,85.888,85.843,6.87997078]
[1772139098226,2.77722669,85.89,85.843,6.87997078]
[1772139098432,10.4773,85.897,85.854,6.87548472]
[1772139099635,2.77722669,85.89,85.853,0.07336898]
[1772139100134,2.77722669,85.89,85.841,6.87552234]
[1772139100936,13.25542669,85.89,85.841,6.87552234]
[1772139101535,10.4782,85.89,85.841,6.87552234]
[1772139101738,13.25542669,85.89,85.841,6.87552234]
[1772139103331,2.77722669,85.88,85.841,6.87552234]
[1772139106341,10.4797,85.878,85.841,6.87552234]
[1772139109345,10.4807,85.87,85.841,6.87552234]
[1772139109544,13.25792669,85.87,85.841,6.87552234]
[1772139110449,10.4795,85.879,85.841,6.87552234]
[1772139111441,2.77722669,85.87,85.841,6.87552234]
[1772139113047,10.4808,85.869,85.841,6.87552234]
[1772139116451,2.77722669,85.89,85.841,6.87552234]
[1772139117252,10.4793,85.881,85.841,6.87552234]
[1772139119852,2.77722669,85.86,85.812,6.94593315]
[1772139120155,2.77722669,85.87,85.812,6.94593315]
[1772139121254,2.77722669,85.88,85.822,6.94677482]
[1772139121553,2.77722669,85.89,85.831,6.94677482]
[1772139121756,10.4792,85.882,85.837,6.94677482]
[1772139121956,2.77722669,85.89,85.837,6.94677482]
[1772139122154,2.77722669,85.88,85.837,6.94677482]
[1772139122552,10.4799,85.876,85.837,6.94677482]
[1772139123651,2.02667288,85.93,85.84,2.77722669]
[1772139123953,20.9442,85.94,85.797,20.979]
[1772139123954,2.77722669,85.9,85.851,6.96899925]
[1772139126861,2.77722669,85.9,85.852,10.4828]
[1772139127060,2.77722669,85.9,85.853,7.11854317]
[1772139131457,20.9442,85.94,85.858,7.0906702]
[1772139131662,2.77722669,85.92,85.861,7.0906702]
[1772139132664,2.77722669,85.92,85.871,7.09072785]
[1772139133563,2.77722669,85.92,85.875,7.09084459]
[1772139133864,2.77722669,85.93,85.875,7.09084459]
[1772139134865,10.4736,85.928,85.877,10.4797]
[1772139135062,10.4736,85.928,85.878,7.07964061]
[1772139136272,2.77722669,85.92,85.878,7.07964061]
[1772139139878,2.77722669,85.91,85.866,7.08528217]
[1772139140377,2.77722669,85.92,85.866,7.08528217]
[1772139141777,2.77722669,85.91,85.866,7.08528217]
[1772139141978,2.77722669,85.91,85.868,7.07898294]
[1772139146577,283.57042348,85.95,85.87,7.06281472]
[1772139146780,2.77722669,85.94,85.89,2.77722669]
[1772139146979,2.77722669,85.94,85.891,7.06281472]
[1772139147179,2.77722669,85.93,85.891,7.06281472]
[1772139147979,13.25062669,85.93,85.891,7.06281472]
[1772139148480,2.77722669,85.92,85.891,7.06281472]
[1772139149281,2.77465043,85.92,85.891,7.06281472]
[1772139149882,286.34507391,85.95,85.891,7.06114794]
[1772139150283,286.34507391,85.95,85.899,7.06471198]
[1772139150484,286.34507391,85.95,85.9,2.77465043]
[1772139150680,283.57042348,85.95,85.901,7.06471198]
[1772139150983,2.77465043,85.96,85.911,7.06471198]
[1772139151885,2.77465043,85.96,85.913,7.10423982]
[1772139152285,10.4686,85.969,85.913,7.10423982]
[1772139152587,20.9216,86.033,85.924,10.4739]
[1772139152788,2.77465043,85.98,85.931,7.10423982]
[1772139160290,2.77465043,85.98,85.933,7.14904905]
[1772139161894,2.77465043,85.98,85.936,7.17804914]
[1772139162095,2.77465043,85.97,85.936,7.17804914]
[1772139162393,2.77465043,85.97,85.911,7.17804914]
[1772139163694,2.77465043,85.97,85.92,2.77465043]
[1772139163994,2.77465043,85.97,85.927,7.17910369]
[1772139164996,2.77465043,85.97,85.929,7.17920759]
[1772139165998,13.24315043,85.97,85.929,7.17920759]
[1772139166598,2.77465043,85.97,85.929,7.17920759]
[1772139168493,10.4669,85.983,85.929,7.17920759]
[1772139168692,2.77465043,85.97,85.929,7.17920759]
[1772139169898,2.77465043,85.97,85.93,10.4732]
[1772139170100,2.77465043,85.97,85.931,7.21732254]
[1772139170898,2.77465043,85.97,85.935,17.68992254]
[1772139171698,283.29021909,86.03,85.861,177.0]
[1772139171699,2.77465043,85.96,85.925,7.21743159]
[1772139173898,2.77465043,85.96,85.927,7.2136222]
[1772139174201,2.77465043,85.96,85.91,2.77465043]
[1772139174202,2.77465043,85.97,85.93,7.22869473]
[1772139176099,2.77465043,85.97,85.932,7.2236068]
[1772139182307,10.4686,85.969,85.932,7.2236068]
[1772139182507,2.77465043,85.96,85.932,7.2236068]
[1772139183605,10.4677,85.976,85.932,7.2236068]
[1772139183606,2.77465043,85.97,85.932,7.2236068]
[1772139183907,2.77465043,85.97,85.934,7.24826724]
[1772139189612,2.77465043,85.96,85.934,7.24826724]
[1772139192118,2.77465043,85.95,85.923,7.20172232]
[1772139192312,2.77465043,85.96,85.923,7.20172232]
[1772139193219,2.77465043,85.95,85.923,7.20172232]
[1772139193422,458.08560368,85.998,85.924,7.20180271]
[1772139193621,2.77465043,85.99,85.931,7.20180271]
[1772139194521,2.77465043,85.98,85.931,7.20180271]
[1772139194720,2.77465043,85.98,85.936,7.19215703]
[1772139199020,2.77465043,85.97,85.936,7.19215703]
[1772139199226,2.77465043,85.95,85.926,7.1888098]
[1772139201528,2.77465043,85.94,85.906,7.12174321]
[1772139202623,2.77465043,85.93,85.906,7.12174321]
[1772139207530,10.4722,85.939,85.906,7.12174321]
[1772139208427,20.9326,85.988,85.906,7.12174321]
[1772139208632,2.77465043,85.96,85.911,7.12000063]
[1772139209233,2.77212135,85.96,85.911,7.12000063]
[1772139209933,2.77212135,85.96,85.915,7.14244856]
[1772139210728,2.77212135,85.96,85.918,7.14244856]
[1772139211336,2.77212135,85.95,85.918,7.14244856]
[1772139211535,2.77212135,85.93,85.907,7.14250442]
[1772139215536,2.77212135,85.94,85.907,7.14250442]
[1772139217938,2.77212135,85.94,85.909,7.12693121]
[1772139218138,2.77212135,85.95,85.909,7.12693121]
[1772139219641,2.77212135,85.95,85.916,7.12697629]
[1772139219840,2.77212135,85.97,85.916,7.12697629]
[1772139220341,2.77212135,85.97,85.93,7.12806532]
[1772139221340,2.77212135,85.99,85.931,7.12811017]
[1772139221536,2.77212135,85.98,85.931,7.12811017]
[1772139222141,2.77212135,85.98,85.934,7.13805011]
[1772139223538,2.77212135,85.98,85.933,10.4729]
[1772139223539,2.77212135,85.98,85.938,7.13809538]
[1772139226445,2.77212135,85.96,85.925,7.1372625]
[1772139226840,2.77212135,85.98,85.925,7.1372625]
[1772139227947,10.4676,85.977,85.928,7.12394129]
[1772139230450,2.77212135,85.97,85.928,7.12394129]
[1772139232047,13.24052135,85.97,85.928,7.12394129]
[1772139234155,10.4693,85.964,85.928,7.12394129]
[1772139234350,2.77212135,85.96,85.928,7.12394129]
[1772139237156,2.77212135,85.96,85.93,10.4732]
[1772139237350,2.77212135,85.96,85.931,7.11707822]
[1772139238055,2.77212135,85.96,85.932,10.473]
[1772139238257,2.77212135,85.96,85.932,17.5902661]
[1772139239459,2.77212135,85.96,85.933,7.11730103]
[1772139239755,2.77212135,85.97,85.933,7.11730103]
[1772139240958,2.77212135,85.98,85.936,7.11501828]
[1772139241558,10.4675,85.978,85.936,7.11501828]
[1772139241858,2.77212135,85.97,85.936,7.11501828]
[1772139242960,453.42832035,86.011,85.936,7.11501828]
[1772139242961,2.77212135,85.98,85.936,7.11501828]
[1772139243462,2.77212135,85.98,85.94,7.11676299]
[1772139244162,2.77212135,85.98,85.943,7.1138724]
[1772139244362,10.4664,85.987,85.943,7.1138724]
[1772139244661,2.77212135,85.98,85.943,7.1138724]
[1772139254572,2.77212135,85.96,85.911,7.07262315]
[1772139255167,2.77212135,85.96,85.914,7.07264656]
[1772139256069,2.77212135,85.96,85.922,7.04831663]
[1772139256872,2.77212135,85.96,85.924,7.04831663]
[1772139257983,13.24182135,85.96,85.924,7.04831663]
[1772139258482,2.77212135,85.96,85.924,7.04831663]
[1772139265887,453.42832035,86.011,85.933,6.99115106]
[1772139266089,2.77212135,85.96,85.933,6.99115106]
[1772139266787,2.77212135,85.95,85.917,6.99158312]
[1772139267390,2.77212135,85.96,85.917,6.99158312]
[1772139270990,10.4698,85.959,85.917,6.99158312]
[1772139272090,2.77224305,85.96,85.92,7.00554745]
[1772139272990,2.77224305,85.96,85.922,7.00543296]
[1772139274895,2.77224305,85.96,85.924,10.474]
[1772139275192,2.77224305,85.98,85.931,7.004838]
[1772139275593,2.77224305,85.98,85.942,10.4717]
[1772139275791,2.77224305,85.98,85.943,7.004838]
[1772139277296,2.77224305,85.98,85.945,10.4714]
[1772139277891,2.77224305,85.98,85.945,17.45337251]
[1772139278295,2.77224305,85.98,85.946,6.9824299]
[1772139278794,2.77224305,85.98,85.948,6.9824299]
[1772139280195,10.4646,86.002,85.95,6.98433947]
[1772139280395,2.77224305,86.0,85.951,6.98433947]
[1772139280598,2.77224305,85.99,85.951,6.98433947]
[1772139281096,10.4662,85.989,85.951,6.98433947]
[1772139281296,2.77224305,85.98,85.951,6.98433947]
[1772139281504,2.77224305,85.98,85.936,6.98424855]
[1772139284201,10.4673,85.979,85.936,6.98424855]
[1772139286703,10.4673,85.979,85.938,6.92941741]
[1772139288002,10.4673,85.979,85.94,6.92936061]
[1772139290003,449.80631516,86.007,85.943,6.92732453]
[1772139290205,2.77224305,85.99,85.943,6.92732453]
[1772139290406,2.77224305,86.0,85.943,6.92732453]
[1772139290607,2.77224305,86.0,85.953,6.9273445]
[1772139291806,2.77224305,85.99,85.953,6.9273445]
[1772139292106,2.77224305,85.99,85.957,6.92729117]
[1772139292909,2.77224305,85.99,85.959,6.94697419]
[1772139293709,2.77224305,85.98,85.951,10.4707]
[1772139294111,2.77224305,85.98,85.952,6.95351458]
[1772139294410,2.77224305,85.98,85.954,6.95351458]
[1772139300213,2.77224305,85.98,85.944,6.94731781]
[1772139300414,449.80631516,86.007,85.944,6.94731781]